fUSD/lending_fUSD_20260128
["ID","MTS","AMOUNT","RATE_DAILY","PERIOD"]
[403890318,1769634645408,-500.0,0.00026609,2]
[403890319,1769634645420,-500.0,0.0002661,2]
[403890320,1769634645429,-499.9999,0.00026611,2]
[403890321,1769634645438,-1208.74,0.00026611,2]
[403890322,1769634645447,-1208.74,0.00026611,2]
[403890323,1769634645456,-1208.74,0.00026611,2]
[403890324,1769634645465,-1208.74,0.00026611,2]
[403890325,1769634645474,-1683.39,0.00026611,2]
[403890326,1769634645482,-838.71,0.00026662,120]
[403890327,1769634645491,-500.0,0.00026751,2]
[403890329,1769634645500,-716.12772924,0.00026813,2]
[403890330,1769634645509,-172.74,0.00026868,2]
[403890332,1769634645518,-1020.3176601,0.00026894,2]
[403890334,1769634645527,-545.04649337,0.00027183,2]
[403890335,1769634645536,-8545.0271606,0.00027184,2]
[403890336,1769634645545,-150.01818079,0.00027265,32]
[403890337,1769634645554,-241.93123044,0.0002737,30]
[403890338,1769634645563,-183.23,0.00027397,120]
[403890339,1769634645573,-300.0,0.00027397,2]
[403890340,1769634645582,-750.0,0.00027397,20]
[403890341,1769634645591,-183.23,0.00027452,120]
[403890342,1769634645600,-1708.75,0.00027703,2]
[403890343,1769634645610,-816.0,0.0002784,2]
[403890344,1769634645620,-1000.0,0.0002786,2]
[403890345,1769634645630,-928.0,0.000279,2]
[403890346,1769634645639,-172.74,0.00028036,2]
[403890347,1769634645648,-153.40934263,0.000285,14]
[403890348,1769634645658,-150.0,0.0002858,2]
[403890349,1769634645677,-917.0,0.000286,2]
[403890350,1769634645691,-985.0,0.000286,2]
[403890351,1769634645701,-183.23,0.00028767,120]
[403890352,1769634645711,-3592.68224625,0.00028846,2]
[403890353,1769634645720,-500.0,0.0002894,30]
[403890354,1769634645730,-500.0,0.0002894,120]
[403890355,1769634645739,-194.15,0.00028975,2]
[403890356,1769634645749,-337.52,0.0002906,2]
[403890357,1769634645759,-838.71,0.00029085,120]
[403890358,1769634645768,-8002.22,0.00029121,2]
[403890359,1769634645779,-172.74,0.00029205,2]
[403890360,1769634645790,-305.37481683,0.0002969,2]
[403890361,1769634645800,-8545.0271606,0.00029842,2]
[403890362,1769634645809,-5705.36934082,0.0003,30]
[403890363,1769634645819,-177.0,0.0003,14]
[403890364,1769634645829,-2442.0,0.00030356,2]
[403890365,1769634645839,-6572.0,0.00030356,2]
[403890366,1769634645850,-5930.0,0.00030356,2]
[403890367,1769634645860,-150.01818079,0.00030361,40]
[403890368,1769634645870,-172.74,0.00030373,2]
[403890369,1769634645880,-1000.0,0.00030393,2]
[403890370,1769634645891,-4878.76,0.00030649,2]
[403890371,1769634645901,-4878.76,0.00030748,2]
[403890372,1769634645910,-150.0,0.00030847,2]
[403890373,1769634645921,-4878.76,0.00030847,2]
[403890374,1769634645931,-4878.76,0.00030945,2]
[403890375,1769634645940,-151.0,0.00030997,7]
[403890376,1769634645950,-16499.75,0.00031,7]
[403890377,1769634645959,-4878.76,0.00031044,2]
[403890378,1769634645968,-4878.76,0.00031143,2]
[403890379,1769634645979,-2980.72666491,0.0003121,2]
[403890380,1769634645994,-3592.68224625,0.00031236,2]
[403890381,1769634646007,-4878.76,0.00031242,2]
[403890382,1769634646016,-4878.76,0.0003134,2]
[403890383,1769634646025,-4878.76,0.00031439,2]
[403890384,1769634646037,-4878.76,0.00031538,2]
[403890385,1769634646051,-172.74,0.00031541,2]
[403890386,1769634646061,-4878.76,0.00031637,2]
[403890387,1769634646070,-168.0,0.00031699,2]
[403890388,1769634646081,-194.09,0.000317,14]
[403890389,1769634646091,-178.0,0.00031716,14]
[403890390,1769634646100,-4878.76,0.00031735,2]
[403890391,1769634646110,-168.0,0.00031834,2]
[403890393,1769634646120,-4878.76,0.00031834,2]
[403890395,1769634646130,-168.0,0.00031847,2]
[403890397,1769634646139,-168.0,0.0003192,2]
[403890398,1769634646149,-4878.76,0.00031933,2]
[403890399,1769634646159,-168.0,0.00031957,2]
[403890400,1769634646170,-404.84968238,0.00032,28]
[403890401,1769634646180,-4878.76,0.00032032,2]
[403890402,1769634646190,-4878.76,0.00032131,2]
[403890403,1769634646201,-4878.76,0.00032229,2]
[403890404,1769634646211,-4878.76,0.00032328,2]
[403890405,1769634646221,-168.0,0.00032347,2]
[403890406,1769634646231,-168.0,0.00032402,7]
[403890407,1769634646241,-4878.76,0.00032427,2]
[403890408,1769634646250,-168.0,0.0003244,2]
[403890409,1769634646260,-714.20282808,0.000325,28]
[403890410,1769634646270,-1068.40471714,0.000325,28]
[403890411,1769634646280,-1445.5881,0.000325,28]
[403890412,1769634646290,-4878.76,0.00032526,2]
[403890413,1769634646299,-195.894,0.00032539,2]
[403890414,1769634646309,-277.537,0.00032539,2]
[403890415,1769634646319,-228.485,0.00032539,2]
[403890416,1769634646329,-165.436,0.00032539,2]
[403890417,1769634646341,-158.439,0.00032539,2]
[403890418,1769634646352,-199.072,0.00032539,2]
[403890419,1769634646363,-150.0,0.00032539,2]
[403890420,1769634646375,-151.0,0.00032539,2]
[403890421,1769634646385,-150.902,0.00032539,2]
[403890422,1769634646395,-625.132,0.00032539,2]
[403890423,1769634646409,-1409.0,0.00032539,2]
[403890424,1769634646419,-1333.0,0.00032539,2]
[403890425,1769634646429,-715.84178425,0.00032539,2]
[403890426,1769634646452,-554.15821575,0.00032539,2]
[403890427,1769634646462,-184.0,0.00032539,2]
[403890428,1769634646473,-916.0,0.00032539,2]
[403890429,1769634646482,-1204.0,0.00032539,2]
[403890430,1769634646492,-35.11119503,0.00032707,30]
[403890431,1769634646569,-18.63331478,0.00032707,30]
[403890432,1769634648692,-96.25549019,0.00032707,30]
[403890433,1769634648702,-150.0,0.00032707,30]
[403890434,1769634648713,-156.7972859,0.00032707,30]
[403890435,1769634648723,-150.0,0.00032707,30]
[403890436,1769634648733,-150.0,0.00032707,30]
[403890437,1769634648743,-150.0,0.00032707,30]
[403890438,1769634648753,-150.0,0.00032707,30]
[403890439,1769634648763,-500.0,0.00032707,30]
[403890440,1769634648773,-500.0,0.00032707,30]
[403890441,1769634648783,-150.0,0.00032707,2]
[403890442,1769634648793,-500.0,0.00032707,30]
[403890443,1769634648804,-500.0,0.00032707,30]
[403890444,1769634648813,-150.0,0.00032707,30]
[403890445,1769634648823,-150.0,0.00032762,30]
[403890446,1769634648833,-150.0,0.00032762,30]
[403890447,1769634648843,-150.0,0.00032762,30]
[403890448,1769634648853,-150.0,0.00032762,30]
[403890449,1769634648863,-233.94722391,0.00032762,30]
[403890450,1769634648875,-266.05277609,0.00032762,30]
[403890451,1769634648884,-500.0,0.00032762,30]
[403890452,1769634648894,-500.0,0.00032762,30]
[403890453,1769634648904,-500.0,0.00032762,30]
[403890454,1769634648915,-150.0,0.00032762,30]
[403890455,1769634648926,-4517.50640686,0.00032766,5]
[403890456,1769634648946,-7938.49359314,0.00032766,5]
[403890457,1769634648956,-168.0,0.00032784,2]
[403890458,1769634648966,-150.0,0.00032817,30]
[403890459,1769634648976,-150.0,0.00032817,30]
[403890460,1769634648988,-150.0,0.00032817,30]
[403890461,1769634648999,-151.72557844,0.00032817,30]
[403890462,1769634649009,-280.72866755,0.00032817,30]
[403890463,1769634649019,-500.0,0.00032817,30]
[403890464,1769634649031,-500.0,0.00032817,30]
[403890465,1769634649040,-500.0,0.00032817,30]
[403890466,1769634649050,-150.0,0.00032817,30]
[403890467,1769634649061,-150.0,0.00032871,30]
[403890468,1769634649071,-150.0,0.00032871,30]
[403890469,1769634649080,-500.0,0.00032871,30]
[403890470,1769634649090,-500.0,0.00032871,30]
[403890471,1769634649100,-150.0,0.00032871,30]
[403890472,1769634649111,-186.36202968,0.00032877,2]
[403890473,1769634649121,-168.0,0.00032884,2]
[403890474,1769634649131,-500.0,0.00032899,120]
[403890475,1769634649140,-152.39050218,0.00032926,30]
[403890476,1769634649150,-183.41215366,0.00032926,30]
[403890477,1769634649160,-500.0,0.00032926,30]
[403890478,1769634649171,-275.04776947,0.00032926,30]
[403890479,1769634649180,-150.0,0.00032926,30]
[403890480,1769634649190,-168.0,0.0003297,7]
[403890481,1769634649200,-500.0,0.00032981,30]
[403890482,1769634649210,-250.0,0.00032981,30]
[403890483,1769634649219,-517.85965192,0.00033036,30]
[403890484,1769634649229,-168.0,0.00033057,2]
[403890485,1769634649239,-500.0,0.0003308,30]
[403890486,1769634649248,-529.3520444,0.0003308,10]
[403890487,1769634649258,-779.12169,0.000331,10]
[403890488,1769634649268,-10000.0,0.000332,2]
[403890489,1769634649280,-168.0,0.00033206,2]
[403890490,1769634649290,-168.0,0.00033249,2]
[403890491,1769634649299,-582.28,0.000333,30]
[403890492,1769634649310,-6572.0,0.00033356,2]
[403890493,1769634649320,-995.87289178,0.00033356,2]
[403890494,1769634649332,-4173.95510822,0.00033356,2]
[403890495,1769634649341,-407.0,0.00033442,2]
[403890496,1769634649351,-150.01818083,0.00033457,49]
[403890497,1769634649361,-304.32414386,0.00033545,2]
[403890498,1769634649371,-168.0,0.00033546,2]
[403890499,1769634649383,-407.0,0.00033617,2]
[403890500,1769634649394,-3592.68224625,0.00033626,2]
[403890501,1769634649404,-168.0,0.0003365,2]
[403890502,1769634649415,-205.17585614,0.00033688,2]
[403890503,1769634649425,-168.0,0.00033696,7]
[403890504,1769634649435,-551.95368049,0.0003371,120]
[403890505,1769634649444,-5447.0,0.00033711,2]
[403890506,1769634649454,-168.0,0.00033716,2]
[403890507,1769634649464,-356.25,0.00033733,2]
[403890508,1769634649474,-1500.0,0.000339,7]
[403890509,1769634649483,-356.33792807,0.00033964,2]
[403890510,1769634649493,-1406.74876121,0.00033968,30]
[403890511,1769634649502,-665.782704,0.00034,18]
[403890512,1769634649512,-168.0,0.00034034,2]
[403890513,1769634649522,-168.0,0.00034043,2]
[403890514,1769634649531,-500.0,0.00034047,2]
[403890515,1769634649540,-1003.95086698,0.00034081,2]
[403890516,1769634649551,-1925.68846,0.00034081,50]
[403890517,1769634649561,-284.8,0.000341,30]
[403890518,1769634649571,-1925.68846,0.00034281,50]
[403890519,1769634649580,-1613.0,0.00034333,7]
[403890520,1769634649591,-152.0,0.00034426,3]
[403890521,1769634649600,-1613.0,0.00034434,2]
[403890522,1769634649611,-1925.68847,0.00034481,50]
[403890523,1769634649621,-1925.68846,0.00034681,50]
[403890524,1769634649630,-168.0,0.00034708,2]
[403890525,1769634649640,-168.0,0.00034734,2]
[403890526,1769634649650,-779.49662259,0.00034849,120]
[403890527,1769634649659,-1925.68846,0.00034881,50]
[403890528,1769634649668,-898.44608791,0.00034929,2]
[403890529,1769634649679,-453.83226764,0.00035081,50]
[403890530,1769634649691,-1471.85620236,0.00035081,50]
[403890531,1769634649701,-1500.0,0.000353,7]
[403890532,1769634649710,-805.87436496,0.0003533,7]
[403890533,1769634649719,-282.69767143,0.0003533,7]
[403890534,1769634649729,-166.32854811,0.0003533,7]
[403890535,1769634649739,-500.0,0.00035469,30]
[403890536,1769634649748,-500.0,0.00035469,120]
[403890537,1769634649758,-150.0,0.00035539,2]
[403890538,1769634649767,-150.0,0.00035539,2]
[403890539,1769634649777,-150.0,0.00035539,2]
[403890540,1769634649787,-150.0,0.00035539,2]
[403890541,1769634649797,-150.0,0.00035539,2]
[403890542,1769634649806,-150.0,0.00035539,2]
[403890543,1769634649815,-150.0,0.00035539,2]
[403890544,1769634649825,-150.0,0.00035539,2]
[403890545,1769634649834,-615.0,0.00035539,2]
[403890546,1769634649844,-1409.0,0.00035539,2]
[403890547,1769634649854,-1333.0,0.00035539,2]
[403890548,1769634649863,-1270.0,0.00035539,2]
[403890549,1769634649872,-184.0,0.00035539,2]
[403890550,1769634649883,-916.0,0.00035539,2]
[403890551,1769634649895,-1204.0,0.00035539,2]
[403890552,1769634649905,-181.44842283,0.00035589,120]
[403890553,1769634649915,-1000.0,0.00035599,7]
[403890554,1769634649925,-510.92,0.000356,14]
[403890555,1769634649935,-1691.31,0.000356,14]
[403890556,1769634649944,-583.86,0.000356,14]
[403890557,1769634649954,-400.0,0.00035609,2]
[403890558,1769634649965,-500.0,0.00035616,7]
[403890559,1769634649974,-500.0,0.00035616,7]
[403890560,1769634649984,-500.0,0.00035616,7]
[403890561,1769634649998,-500.0,0.00035616,7]
[403890562,1769634650007,-500.0,0.00035616,7]
[403890563,1769634650018,-500.0,0.00035616,7]
[403890564,1769634650031,-500.0,0.00035616,7]
[403890565,1769634650041,-500.0,0.00035616,7]
[403890566,1769634650050,-612.24408379,0.00035616,7]
[403890567,1769634650060,-500.0,0.00035616,7]
[403890568,1769634650070,-500.0,0.00035616,7]
[403890569,1769634650080,-500.0,0.00035616,7]
[403890570,1769634650091,-449.36,0.00035616,30]
[403890571,1769634650101,-1859.455,0.00035682,42]
[403890572,1769634650111,-150.041,0.00035682,42]
[403890573,1769634650120,-1000.0,0.00035873,14]
[403890574,1769634650268,-505.13,0.00036,30]
[403890575,1769634650278,-3592.68224625,0.00036016,2]
[403890576,1769634650287,-1000.0,0.00036147,14]
[403890577,1769634650297,-6570.0,0.00036356,2]
[403890578,1769634650306,-1000.0,0.00036421,14]
[403890579,1769634650315,-200.0,0.00036446,2]
[403890580,1769634650324,-152.45190172,0.00036553,58]
[403890581,1769634650334,-1000.0,0.00036695,14]
[403890582,1769634650343,-505.13,0.0003672,30]
[403890583,1769634650352,-510.92,0.000368,14]
[403890584,1769634650362,-1691.31,0.000368,14]
[403890585,1769634650371,-583.86,0.000368,14]
[403890586,1769634650379,-1500.0,0.000368,7]
[403890587,1769634650389,-160.57192077,0.00036869,2]
[403890588,1769634650399,-14160.57504349,0.00036888,60]
[403890591,1769635533006,-151.0,0.00017185,2]
[403890592,1769635533027,-151.0,0.00017185,2]
[403890593,1769635533049,-600.0,0.00017195,2]
[403890594,1769635533072,-151.0,0.00017226,2]
[403890595,1769635533095,-150.00451109,0.00017361,2]
[403890596,1769635533116,-158.27113696,0.00017375,2]
[403890597,1769635533136,-216.83424591,0.000179,2]
[403890598,1769635533158,-514.0,0.00018,2]
[403890599,1769635533180,-53671.31125539,0.00018,2]
[403890600,1769635554119,-151.0,0.00017389,2]
[403890601,1769635554140,-173.32528542,0.000179,2]
[403890602,1769635554168,-5360.8402548,0.00018,2]
[403890603,1769635640136,-300.0,0.00016199,2]
[403890604,1769635640156,-17499.77109816,0.000162,5]
[403890605,1769635640176,-500.0,0.00016373,2]
[403890606,1769635640197,-500.0,0.00016373,2]
[403890607,1769635640218,-250.0,0.00016647,2]
[403890608,1769635640241,-1000.0,0.00016921,2]
[403890609,1769635640261,-1000.0,0.00016921,2]
[403890610,1769635640285,-1500.0,0.00017468,2]
[403890611,1769635640307,-1500.0,0.00017468,2]
[403890612,1769635640330,-420.0,0.00017707,2]
[403890613,1769635640349,-186.58226438,0.000179,2]
[403890614,1769635640368,-1468.33383864,0.000179,2]
[403890615,1769635640388,-254516.031984,0.00018,2]
[403890616,1769635649153,-151.0,0.00017186,2]
[403890617,1769635649174,-32805.08274699,0.00018,2]
[403890618,1769635649202,-47009.77423362,0.00018,2]
[403890619,1769635762122,-1596.839999,0.000149,2]
[403890620,1769635762143,-500.0,0.00016373,2]
[403890621,1769635762167,-500.0,0.00016373,2]
[403890622,1769635762190,-1000.0,0.00016921,2]
[403890623,1769635762212,-1000.0,0.00016921,2]
[403890624,1769635762232,-150.0,0.00017203,2]
[403890625,1769635762253,-150.0,0.00017203,2]
[403890626,1769635762277,-150.0,0.00017203,2]
[403890627,1769635762300,-150.00322459,0.00017455,2]
[403890628,1769635762320,-107.08563041,0.00017468,2]
[403890650,1769635833181,-500.0,0.00016373,2]
[403890651,1769635833191,-500.0,0.00016373,2]
[403890652,1769635833200,-151.0,0.000166,2]
[403890653,1769635833210,-151.0,0.00016607,2]
[403890654,1769635833219,-151.0,0.00016651,2]
[403890655,1769635833228,-908.40901104,0.00016921,2]
[403890656,1769635833237,-533.43273963,0.00016921,2]
[403890657,1769635833246,-1000.96059659,0.00017468,2]
[403890658,1769635833255,-1200.0,0.00017799,2]
[403890659,1769635833264,-5332.4474,0.000178,2]
[403890660,1769635833274,-300.0,0.00017899,2]
[403890661,1769635833286,-14593.71186893,0.000179,2]
[403890662,1769635833297,-408.2574532,0.000179,2]
[403890663,1769635833308,-323.3292545,0.000179,2]
[403890664,1769635833319,-7631.69981,0.000179,2]
[403890665,1769635833329,-607.56498033,0.000179,2]
[403890666,1769635833344,-293.48857706,0.000179,2]
[403890667,1769635833356,-9763.91373479,0.000179,2]
[403890668,1769635833366,-212.08876731,0.000179,2]
[403890669,1769635833375,-3411.9435,0.000179,2]
[403890670,1769635833384,-190.19209598,0.000179,3]
[403890671,1769635833393,-237.1434,0.000179,2]
[403890672,1769635833402,-152.21,0.0001799,2]
[403890673,1769635833412,-152.21,0.0001799,2]
[403890674,1769635833421,-152.21,0.0001799,2]
[403890675,1769635833430,-152.21,0.0001799,2]
[403890676,1769635833439,-152.21,0.0001799,2]
[403890677,1769635833449,-152.21,0.0001799,2]
[403890678,1769635833458,-152.21,0.0001799,2]
[403890679,1769635833467,-152.21,0.0001799,2]
[403890680,1769635833477,-152.21,0.0001799,2]
[403890681,1769635833487,-152.21,0.0001799,2]
[403890682,1769635833496,-152.21,0.0001799,2]
[403890683,1769635833505,-152.21,0.0001799,2]
[403890684,1769635833515,-152.21,0.0001799,2]
[403890685,1769635833525,-152.21,0.0001799,2]
[403890686,1769635833534,-152.21,0.0001799,2]
[403890687,1769635833544,-152.21,0.0001799,2]
[403890688,1769635833554,-152.21,0.0001799,2]
[403890689,1769635833565,-152.21,0.0001799,2]
[403890690,1769635833575,-152.21,0.0001799,2]
[403890691,1769635833584,-233.40779707,0.0001799,2]
[403890692,1769635833593,-233.40779707,0.0001799,2]
[403890693,1769635833603,-233.40779707,0.0001799,2]
[403890694,1769635833612,-553.77485833,0.00017999,2]
[403890695,1769635833621,-325.78056845,0.00017999,2]
[403890696,1769635833631,-324.79687274,0.00017999,2]
[403890697,1769635833640,-207.59948259,0.00017999,2]
[403890698,1769635833649,-500.0,0.00017999,2]
[403890699,1769635833659,-500.0,0.00017999,2]
[403890700,1769635833668,-500.0,0.00017999,2]
[403890701,1769635833678,-500.0,0.00017999,2]
[403890702,1769635833688,-500.0,0.00017999,2]
[403890703,1769635833697,-500.0,0.00017999,2]
[403890704,1769635833707,-500.0,0.00017999,2]
[403890705,1769635833717,-500.0,0.00017999,2]
[403890706,1769635833727,-500.0,0.00017999,2]
[403890707,1769635833737,-500.0,0.00017999,2]
[403890708,1769635833747,-500.0,0.00017999,2]
[403890709,1769635833756,-500.0,0.00017999,2]
[403890710,1769635833766,-500.0,0.00017999,2]
[403890711,1769635833776,-500.0,0.00017999,2]
[403890712,1769635833785,-267.85707452,0.00017999,2]
[403890713,1769635833795,-500.0,0.00017999,2]
[403890714,1769635833806,-500.0,0.00017999,2]
[403890715,1769635833816,-500.0,0.00017999,2]
[403890716,1769635833824,-500.0,0.00017999,2]
[403890717,1769635833833,-500.0,0.00017999,2]
[403890718,1769635833843,-500.0,0.00017999,2]
[403890719,1769635833852,-161.82063595,0.00017999,2]
[403890720,1769635833861,-221.22,0.00017999,2]
[403890721,1769635833871,-94718.94144495,0.00018,2]
[403890722,1769635833883,-20361.64865174,0.00018,2]
[403890723,1769635833918,-1691.67677193,0.00018,2]
[403890724,1769635833930,-335.55289355,0.00018,2]
[403890725,1769635833941,-947.96197807,0.00018,2]
[403890726,1769635833953,-3757.54575348,0.00018,2]
[403890727,1769635833964,-558.76267928,0.00018,2]
[403890728,1769635833976,-2424.42970357,0.00018,2]
[403890729,1769635833987,-3444.2674592,0.00018,2]
[403890730,1769635834008,-1331.26324519,0.00018,2]
[403890731,1769635834024,-1013.08682692,0.00018,2]
[403890732,1769635834055,-65332.022841,0.00018,2]
[403890737,1769635837910,-351.88118535,0.00018,2]
[403890738,1769635838027,-466793.40199679,0.00018,2]
[403890739,1769635838040,-1432246.61844895,0.00018,2]
[403890740,1769635838048,-1277864.50183763,0.00018,2]
[403890741,1769635838057,-3367048.94747587,0.00018,2]
[403890742,1769635838085,-251.80538329,0.00018,2]
[403890743,1769635838100,-390.805764,0.00018,2]
[403890744,1769635838124,-436.75223375,0.00018,2]
[403890745,1769635838135,-1726.28724456,0.00018,2]
[403890896,1769635839892,-1368.08453927,0.00018,2]
[403890899,1769635839912,-93192.0115496,0.00018,2]
[403890901,1769635839923,-5162.82916256,0.00018,2]
[403890905,1769635839955,-854.0836,0.00018,2]
[403890908,1769635839966,-276.871998,0.00018,2]
[403890910,1769635839978,-354.57139711,0.00018,2]
[403890912,1769635839988,-9932.76932683,0.00018,2]
[403890921,1769635840067,-151.0,0.0001696,2]
[403890923,1769635840076,-4468.849466,0.00018,2]
[403890936,1769635840178,-440.1142213,0.00018,2]
[403890954,1769635840344,-27144.10213746,0.00018,2]
[403890956,1769635840357,-506.37642362,0.00018,2]
[403890959,1769635840369,-1361.29,0.00018,2]
[403891180,1769635843513,-410.39994,0.00018,2]
[403891181,1769635843525,-345.0,0.00018,2]
[403891182,1769635843568,-340.981756,0.00018,2]
[403891183,1769635843579,-549.19859983,0.00018,2]
[403891184,1769635843812,-81008.67288026,0.00018,2]
[403891185,1769635843821,-151.0,0.00018,2]
[403891186,1769635843831,-151.0,0.00018,2]
[403891187,1769635843841,-514.0,0.00018,2]
[403891188,1769635843850,-2646.79155626,0.00018,2]
[403891189,1769635843859,-207.251267,0.00018,2]
[403891190,1769635843869,-207.251267,0.00018,2]
[403891191,1769635843878,-207.251267,0.00018,2]
[403891192,1769635843888,-207.251267,0.00018,2]
[403891193,1769635843898,-1255.89,0.00018,2]
[403891194,1769635843908,-1255.89,0.00018,2]
[403891195,1769635843917,-1255.89,0.00018,2]
[403891196,1769635843927,-1255.89,0.00018,2]
[403891197,1769635843937,-1255.89,0.00018,2]
[403891198,1769635843946,-2213.74,0.00018,2]
[403891199,1769635843956,-250.0,0.0001801,2]
[403891200,1769635843965,-1779.11882968,0.000181,2]
[403891201,1769635843975,-1149.99795909,0.00018559,2]
[403891202,1769635843984,-150.00322459,0.00018768,4]
[403891203,1769635843994,-254.8393503,0.00019,2]
[403891204,1769635844003,-13167.59162326,0.00019046,2]
[403891205,1769635844021,-4197.18904291,0.00019046,2]
[403891209,1769635845896,-999.0,0.00019046,2]
[403891210,1769635846009,-945.83191163,0.00019046,2]
[403891211,1769635846023,-891.87,0.00019046,2]
[403891212,1769635846091,-3005.6703432,0.00019046,2]
[403891213,1769635846102,-500.0,0.00019178,2]
[403891214,1769635846112,-306.19245129,0.00019178,2]
[403891215,1769635846122,-1080.677273,0.00019178,2]
[403891216,1769635846132,-1080.677273,0.00019178,2]
[403891217,1769635846142,-1080.677273,0.00019178,2]
[403891218,1769635846152,-1080.677273,0.00019178,2]
[403891219,1769635846162,-1680.0,0.0001952,2]
[403891220,1769635846172,-420.0,0.00019532,2]
[403891221,1769635846181,-1032.23010825,0.00019737,2]
[403891225,1769635846348,-310.76989175,0.00019737,2]
[403891227,1769635846359,-176.46671061,0.0002,2]
[403891228,1769635846370,-1723.01969598,0.0002001,2]
[403891229,1769635846411,-845.0,0.0002001,2]
[403891262,1769637032246,-609.91657242,0.00014985,2]
[403891263,1769637032257,-195.0,0.00014994,2]
[403891264,1769637032267,-6668.52,0.00015002,2]
[403891265,1769637032277,-195.0,0.00015613,2]
[403891266,1769637032287,-150.00011454,0.00015613,2]
[403891267,1769637032298,-1200.0,0.00016205,2]
[403891268,1769637032308,-151.0,0.00016217,2]
[403891269,1769637032318,-151.0,0.0001622,2]
[403891270,1769637032327,-300.0,0.00016371,2]
[403891271,1769637032336,-500.0,0.00016373,2]
[403891272,1769637032346,-500.0,0.00016373,2]
[403891273,1769637032356,-500.0,0.00016373,2]
[403891274,1769637032365,-437.54878761,0.00016373,2]
[403891275,1769637032375,-500.0,0.00016373,2]
[403891276,1769637032384,-500.0,0.00016373,2]
[403891277,1769637032393,-266.61872265,0.00016373,2]
[403891278,1769637032403,-195.0,0.00016484,2]
[403891279,1769637032413,-250.0,0.00016484,2]
[403891280,1769637032423,-195.0,0.00016502,2]
[403891281,1769637032433,-250.0,0.00016502,2]
[403891282,1769637032442,-2495.12,0.00016587,2]
[403891283,1769637032452,-200.0,0.00016679,2]
[403891284,1769637032461,-509.63064655,0.00016921,2]
[403891285,1769637032471,-150.99,0.00016921,2]
[403891286,1769637032480,-1000.0,0.00016921,2]
[403891287,1769637032490,-123.62045217,0.00016921,2]
[403891288,1769637032511,-582.34950464,0.00016921,2]
[403891289,1769637032520,-150.00011454,0.00016971,2]
[403891290,1769637032530,-21537.84,0.00016999,2]
[403891291,1769637032540,-250.0,0.00017,2]
[403891292,1769637032551,-2977.76,0.00017,2]
[403891293,1769637032560,-150.99,0.00017,2]
[403891294,1769637032569,-206.23235271,0.00017259,2]
[403891295,1769637032579,-255.0,0.00017503,2]
[403891296,1769637032589,-316.29,0.00017504,2]
[403891297,1769637032598,-4878.76,0.00017504,2]
[403891298,1769637032608,-3706.43951104,0.00017504,2]
[403891299,1769637032619,-5747.77048896,0.00017504,2]
[403891300,1769637032628,-9999.99,0.00017504,2]
[403891301,1769637032639,-886.2,0.00017504,2]
[403891302,1769637032649,-999.99,0.00017504,2]
[403891303,1769637032659,-3752.64,0.00017504,2]
[403891304,1769637032668,-310.61,0.00017504,2]
[403891305,1769637032677,-7849.79572612,0.00017504,2]
[403891306,1769637032692,-678.91427388,0.00017504,2]
[403891307,1769637032702,-4878.76,0.00017561,2]
[403891308,1769637032713,-3423.03028009,0.00017617,2]
[403891309,1769637032727,-804.0,0.00017617,2]
[403891310,1769637032738,-300.0,0.00017617,2]